[Event "Titled Tuesday Blitz March 07 Early 2023"]
[White "Fier, Alexandr"]
[Black "Tabatabaei, M. Amin"]
[WhiteFideId "2107139"]
[BlackFideId "12521213"]
[WhiteElo "2610"]
[BlackElo "2575"]
[Result "1/2-1/2"]
[Round "06"]
[TimeControl "180+2"]
[Date "2023.03.07"]
[WhiteClock "0:00:06"]
[BlackClock "0:00:04"]

1. e4 {[%clk 0:03:00]}  e5 {[%clk 0:03:00]} 2. f4 {[%clk 0:03:00]}  d5 {[%clk 0:02:56]} 3. exd5 {[%clk 0:03:00]}  exf4 {[%clk 0:02:57]} 4. Nf3 {[%clk 0:03:00]}  Nf6 {[%clk 0:02:57]} 5. Be2 {[%clk 0:03:00]}  Nxd5 {[%clk 0:02:54]} 6. c4 {[%clk 0:02:59]}  Nf6 {[%clk 0:02:53]} 7. d4 {[%clk 0:03:00]}  Bb4+ {[%clk 0:02:47]} 8. Nc3 {[%clk 0:02:58]}  Ne4 {[%clk 0:02:41]} 9. Qb3 {[%clk 0:02:38]}  Nc6 {[%clk 0:02:31]} 10. d5 {[%clk 0:02:23]}  Bxc3+ {[%clk 0:02:13]} 11. bxc3 {[%clk 0:02:23]}  Ne7 {[%clk 0:02:01]} 12. Bxf4 {[%clk 0:02:18]}  Ng6 {[%clk 0:01:58]} 13. Be3 {[%clk 0:02:18]}  O-O {[%clk 0:01:58]} 14. O-O {[%clk 0:02:18]}  Re8 {[%clk 0:01:59]} 15. Bd4 {[%clk 0:02:15]}  b6 {[%clk 0:01:57]} 16. Rae1 {[%clk 0:02:14]}  Bg4 {[%clk 0:01:44]} 17. Qc2 {[%clk 0:02:06]}  Ng5 {[%clk 0:01:32]} 18. Nxg5 {[%clk 0:01:54]}  Qxg5 {[%clk 0:01:33]} 19. Bxg4 {[%clk 0:01:54]}  Qxg4 {[%clk 0:01:34]} 20. Qf2 {[%clk 0:01:52]}  f6 {[%clk 0:01:31]} 21. c5 {[%clk 0:01:46]}  Rad8 {[%clk 0:01:27]} 22. d6 {[%clk 0:01:44]}  cxd6 {[%clk 0:01:14]} 23. cxb6 {[%clk 0:01:43]}  axb6 {[%clk 0:01:15]} 24. Bxb6 {[%clk 0:01:42]}  Rc8 {[%clk 0:01:11]} 25. h3 {[%clk 0:01:39]}  Qc4 {[%clk 0:01:10]} 26. Bd4 {[%clk 0:01:39]}  Ra8 {[%clk 0:01:04]} 27. Qg3 {[%clk 0:01:32]}  Qd5 {[%clk 0:00:46]} 28. Rxe8+ {[%clk 0:01:22]}  Rxe8 {[%clk 0:00:47]} 29. a4 {[%clk 0:01:23]}  Ra8 {[%clk 0:00:45]} 30. Ra1 {[%clk 0:01:21]}  Ne5 {[%clk 0:00:45]} 31. Qf2 {[%clk 0:01:10]}  Nc6 {[%clk 0:00:41]} 32. Bb6 {[%clk 0:01:00]}  Qc4 {[%clk 0:00:37]} 33. Qd2 {[%clk 0:00:57]}  Rxa4 {[%clk 0:00:26]} 34. Rxa4 {[%clk 0:00:58]}  Qxa4 {[%clk 0:00:27]} 35. Qxd6 {[%clk 0:00:57]}  Qc4 {[%clk 0:00:18]} 36. Bc5 {[%clk 0:00:54]}  h5 {[%clk 0:00:18]} 37. Qxc6 {[%clk 0:00:54]}  Qxc3 {[%clk 0:00:12]} 38. Qe8+ {[%clk 0:00:54]}  Kh7 {[%clk 0:00:13]} 39. Qxh5+ {[%clk 0:00:55]}  Kg8 {[%clk 0:00:14]} 40. Bf2 {[%clk 0:00:53]}  Qc1+ {[%clk 0:00:13]} 41. Kh2 {[%clk 0:00:53]}  Qf4+ {[%clk 0:00:14]} 42. Bg3 {[%clk 0:00:53]}  Qe4 {[%clk 0:00:15]} 43. Qc5 {[%clk 0:00:51]}  Qe2 {[%clk 0:00:15]} 44. Qd5+ {[%clk 0:00:51]}  Kh8 {[%clk 0:00:15]} 45. Qf3 {[%clk 0:00:51]}  Qc2 {[%clk 0:00:15]} 46. Bf4 {[%clk 0:00:51]}  Kg8 {[%clk 0:00:15]} 47. h4 {[%clk 0:00:51]}  Qf5 {[%clk 0:00:15]} 48. h5 {[%clk 0:00:49]}  Kh7 {[%clk 0:00:14]} 49. g4 {[%clk 0:00:48]}  Qc2+ {[%clk 0:00:14]} 50. Kg3 {[%clk 0:00:48]}  Qb1 {[%clk 0:00:14]} 51. Be3 {[%clk 0:00:48]}  Qb3 {[%clk 0:00:14]} 52. Kh4 {[%clk 0:00:47]}  Qa2 {[%clk 0:00:12]} 53. Qe4+ {[%clk 0:00:46]}  Kg8 {[%clk 0:00:12]} 54. Bf4 {[%clk 0:00:45]}  Qf2+ {[%clk 0:00:11]} 55. Bg3 {[%clk 0:00:45]}  Qg1 {[%clk 0:00:10]} 56. Qf3 {[%clk 0:00:37]}  Kh7 {[%clk 0:00:10]} 57. Kh3 {[%clk 0:00:36]}  Qa1 {[%clk 0:00:08]} 58. Qe4+ {[%clk 0:00:32]}  Kh8 {[%clk 0:00:08]} 59. Qg2 {[%clk 0:00:23]}  Kh7 {[%clk 0:00:08]} 60. Bf4 {[%clk 0:00:23]}  Qd1 {[%clk 0:00:08]} 61. Kh4 {[%clk 0:00:22]}  Qe1+ {[%clk 0:00:08]} 62. Bg3 {[%clk 0:00:23]}  Qb1 {[%clk 0:00:08]} 63. Qf2 {[%clk 0:00:23]}  Qh1+ {[%clk 0:00:08]} 64. Bh2 {[%clk 0:00:23]}  Kh8 {[%clk 0:00:08]} 65. g5 {[%clk 0:00:23]}  fxg5+ {[%clk 0:00:07]} 66. Kxg5 {[%clk 0:00:23]}  Qd5+ {[%clk 0:00:08]} 67. Kh4 {[%clk 0:00:23]}  Qe4+ {[%clk 0:00:08]} 68. Qf4 {[%clk 0:00:23]}  Qe1+ {[%clk 0:00:08]} 69. Bg3 {[%clk 0:00:23]}  Qh1+ {[%clk 0:00:08]} 70. Kg5 {[%clk 0:00:23]}  Qd5+ {[%clk 0:00:08]} 71. Qf5 {[%clk 0:00:24]}  Qd2+ {[%clk 0:00:08]} 72. Kh4 {[%clk 0:00:23]}  Qd8+ {[%clk 0:00:08]} 73. Kh3 {[%clk 0:00:22]}  Qa8 {[%clk 0:00:09]} 74. Qe5 {[%clk 0:00:20]}  Qh1+ {[%clk 0:00:09]} 75. Kg4 {[%clk 0:00:20]}  Qd1+ {[%clk 0:00:09]} 76. Kg5 {[%clk 0:00:20]}  Qd8+ {[%clk 0:00:09]} 77. Kf4 {[%clk 0:00:19]}  Qd2+ {[%clk 0:00:08]} 78. Kg4 {[%clk 0:00:19]}  Qd1+ {[%clk 0:00:09]} 79. Kh3 {[%clk 0:00:18]}  Qh1+ {[%clk 0:00:08]} 80. Bh2 {[%clk 0:00:19]}  Qf3+ {[%clk 0:00:06]} 81. Kh4 {[%clk 0:00:20]}  Qf1 {[%clk 0:00:03]} 82. h6 {[%clk 0:00:16]}  Qf7 {[%clk 0:00:02]} 83. Bf4 {[%clk 0:00:11]}  Kh7 {[%clk 0:00:03]} 84. Qe4+ {[%clk 0:00:12]}  Kh8 {[%clk 0:00:02]} 85. Be5 {[%clk 0:00:10]}  Qe7+ {[%clk 0:00:02]} 86. Kh5 {[%clk 0:00:09]}  Qe8+ {[%clk 0:00:01]} 87. Kg4 {[%clk 0:00:08]}  Qe6+ {[%clk 0:00:02]} 88. Kg3 {[%clk 0:00:04]}  Qxh6 {[%clk 0:00:02]} 89. Qf5 {[%clk 0:00:04]}  Kg8 {[%clk 0:00:02]} 90. Qc8+ {[%clk 0:00:04]}  Kh7 {[%clk 0:00:02]} 91. Qf5+ {[%clk 0:00:05]}  Qg6+ {[%clk 0:00:03]} 92. Kf4 {[%clk 0:00:05]}  Qxf5+ {[%clk 0:00:03]} 93. Kxf5 {[%clk 0:00:06]}  g5 {[%clk 0:00:04]} 94. Kxg5 {[%clk 0:00:06]} 1/2-1/2


[Site "https://www.chess.com"]

[Event "Titled Tuesday Blitz March 07 Early 2023"]
[White "Aradhya, Garg"]
[Black "Bok, Benjamin"]
[WhiteFideId "25006746"]
[BlackFideId "1017063"]
[WhiteElo "2263"]
[BlackElo "2658"]
[Result "0-1"]
[Round "06"]
[TimeControl "180+2"]
[Date "2023.03.07"]
[WhiteClock "0:00:02"]
[BlackClock "0:00:01"]

1. d4 {[%clk 0:03:00]}  Nf6 {[%clk 0:02:59]} 2. c4 {[%clk 0:03:01]}  e6 {[%clk 0:03:00]} 3. Nf3 {[%clk 0:03:01]}  d5 {[%clk 0:02:59]} 4. Nc3 {[%clk 0:03:01]}  c6 {[%clk 0:03:00]} 5. e3 {[%clk 0:02:59]}  Nbd7 {[%clk 0:02:59]} 6. Qc2 {[%clk 0:02:57]}  Bd6 {[%clk 0:02:59]} 7. Be2 {[%clk 0:02:57]}  O-O {[%clk 0:02:59]} 8. O-O {[%clk 0:02:58]}  dxc4 {[%clk 0:02:57]} 9. Bxc4 {[%clk 0:02:58]}  b5 {[%clk 0:02:58]} 10. Be2 {[%clk 0:02:58]}  Bb7 {[%clk 0:02:58]} 11. Rd1 {[%clk 0:02:56]}  Qc7 {[%clk 0:02:56]} 12. Bd2 {[%clk 0:02:56]}  Rfe8 {[%clk 0:02:50]} 13. b4 {[%clk 0:02:56]}  a5 {[%clk 0:02:48]} 14. Rac1 {[%clk 0:02:53]}  Qb8 {[%clk 0:02:14]} 15. bxa5 {[%clk 0:02:49]}  Rxa5 {[%clk 0:02:10]} 16. Ne4 {[%clk 0:02:08]}  Ra4 {[%clk 0:01:51]} 17. Nxd6 {[%clk 0:02:07]}  Qxd6 {[%clk 0:01:52]} 18. e4 {[%clk 0:02:07]}  Qa3 {[%clk 0:01:18]} 19. e5 {[%clk 0:01:55]}  Nd5 {[%clk 0:01:18]} 20. Qe4 {[%clk 0:01:56]}  Qe7 {[%clk 0:00:57]} 21. Bd3 {[%clk 0:01:49]}  Nf8 {[%clk 0:00:51]} 22. Qg4 {[%clk 0:01:20]}  Rxa2 {[%clk 0:00:44]} 23. h4 {[%clk 0:01:19]}  f5 {[%clk 0:00:28]} 24. exf6 {[%clk 0:01:18]}  Qxf6 {[%clk 0:00:28]} 25. Re1 {[%clk 0:01:09]}  Rea8 {[%clk 0:00:20]} 26. h5 {[%clk 0:01:05]}  h6 {[%clk 0:00:19]} 27. Kh2 {[%clk 0:00:50]}  Rb2 {[%clk 0:00:15]} 28. Re2 {[%clk 0:00:45]}  Raa2 {[%clk 0:00:15]} 29. Rce1 {[%clk 0:00:44]}  Bc8 {[%clk 0:00:12]} 30. g3 {[%clk 0:00:24]}  Bd7 {[%clk 0:00:11]} 31. Kg2 {[%clk 0:00:24]}  e5 {[%clk 0:00:11]} 32. Qe4 {[%clk 0:00:23]}  exd4 {[%clk 0:00:12]} 33. Bc1 {[%clk 0:00:14]}  Rxe2 {[%clk 0:00:09]} 34. Bxe2 {[%clk 0:00:13]}  Nc3 {[%clk 0:00:08]} 35. Qd3 {[%clk 0:00:09]}  Rxe2 {[%clk 0:00:08]} 36. Rxe2 {[%clk 0:00:09]}  Nxe2 {[%clk 0:00:09]} 37. Qxe2 {[%clk 0:00:10]}  c5 {[%clk 0:00:09]} 38. Bf4 {[%clk 0:00:08]}  Bc6 {[%clk 0:00:09]} 39. Kh2 {[%clk 0:00:08]}  Qe6 {[%clk 0:00:08]} 40. Ne5 {[%clk 0:00:08]}  c4 {[%clk 0:00:07]} 41. Qd1 {[%clk 0:00:03]}  d3 {[%clk 0:00:06]} 42. Qa1 {[%clk 0:00:03]}  Qd5 {[%clk 0:00:05]} 43. f3 {[%clk 0:00:03]}  Bb7 {[%clk 0:00:05]} 44. Qa7 {[%clk 0:00:01]}  d2 {[%clk 0:00:04]} 45. Bxd2 {[%clk 0:00:02]}  Qxd2+ {[%clk 0:00:04]} 46. Kh3 {[%clk 0:00:02]}  Qd5 {[%clk 0:00:04]} 47. f4 {[%clk 0:00:02]}  c3 {[%clk 0:00:03]} 48. Qb8 {[%clk 0:00:01]}  c2 {[%clk 0:00:03]} 49. Ng6 {[%clk 0:00:02]}  Qh1+ {[%clk 0:00:01]} 0-1


[Site "https://www.chess.com"]

[Event "Titled Tuesday Blitz March 07 Early 2023"]
[White "Weetik, Vjacheslav"]
[Black "Terry, Renato"]
[WhiteFideId "4153472"]
[BlackFideId "3803457"]
[WhiteElo "2469"]
[BlackElo "2579"]
[Result "0-1"]
[Round "06"]
[TimeControl "180+2"]
[Date "2023.03.07"]
[WhiteClock "0:00:01"]
[BlackClock "0:01:29"]

1. e4 {[%clk 0:02:59]}  e6 {[%clk 0:02:59]} 2. d4 {[%clk 0:02:52]}  d5 {[%clk 0:03:00]} 3. exd5 {[%clk 0:02:53]}  exd5 {[%clk 0:03:00]} 4. Nf3 {[%clk 0:02:53]}  Nc6 {[%clk 0:03:00]} 5. Bb5 {[%clk 0:02:48]}  Bg4 {[%clk 0:02:54]} 6. h3 {[%clk 0:02:42]}  Bh5 {[%clk 0:02:46]} 7. Qe2+ {[%clk 0:02:20]}  Qe7 {[%clk 0:02:37]} 8. Be3 {[%clk 0:02:19]}  f6 {[%clk 0:02:17]} 9. Nc3 {[%clk 0:02:12]}  Qd7 {[%clk 0:02:12]} 10. O-O-O {[%clk 0:01:59]}  O-O-O {[%clk 0:02:10]} 11. Ba4 {[%clk 0:01:36]}  Bb4 {[%clk 0:02:04]} 12. Nb5 {[%clk 0:01:26]}  Kb8 {[%clk 0:02:02]} 13. Rd3 {[%clk 0:00:42]}  Na5 {[%clk 0:01:37]} 14. Bf4 {[%clk 0:00:27]}  Rc8 {[%clk 0:01:37]} 15. Nxc7 {[%clk 0:00:04]}  Qxa4 {[%clk 0:01:37]} 16. Nxd5+ {[%clk 0:00:05]}  Ka8 {[%clk 0:01:37]} 17. b3 {[%clk 0:00:01]}  Qxa2 {[%clk 0:01:34]} 18. Nxb4 {[%clk 0:00:01]}  Qa3+ {[%clk 0:01:34]} 19. Kb1 {[%clk 0:00:01]}  Qxb4 {[%clk 0:01:34]} 20. Bd2 {[%clk 0:00:02]}  Qb5 {[%clk 0:01:33]} 21. c4 {[%clk 0:00:01]}  Nxc4 {[%clk 0:01:29]} 0-1


[Site "https://www.chess.com"]

[Event "Titled Tuesday Blitz March 07 Early 2023"]
[White "Rastbod, Ali"]
[Black "Demchenko, Anton"]
[WhiteFideId "12567477"]
[BlackFideId "4160258"]
[WhiteElo "2211"]
[BlackElo "2545"]
[Result "0-1"]
[Round "06"]
[TimeControl "180+2"]
[Date "2023.03.07"]
[WhiteClock "0:01:12"]
[BlackClock "0:02:02"]

1. e4 {[%clk 0:03:00]}  c5 {[%clk 0:02:52]} 2. Nc3 {[%clk 0:03:00]}  d6 {[%clk 0:02:52]} 3. g3 {[%clk 0:02:59]}  Nc6 {[%clk 0:02:47]} 4. Bg2 {[%clk 0:02:59]}  e6 {[%clk 0:02:48]} 5. Nge2 {[%clk 0:02:57]}  Nf6 {[%clk 0:02:48]} 6. O-O {[%clk 0:02:52]}  Be7 {[%clk 0:02:48]} 7. d4 {[%clk 0:02:50]}  cxd4 {[%clk 0:02:49]} 8. Nxd4 {[%clk 0:02:51]}  Bd7 {[%clk 0:02:49]} 9. Ndb5 {[%clk 0:02:50]}  Qb8 {[%clk 0:02:49]} 10. Bf4 {[%clk 0:02:50]}  Ne5 {[%clk 0:02:49]} 11. a4 {[%clk 0:02:43]}  a6 {[%clk 0:02:48]} 12. Na3 {[%clk 0:02:43]}  b5 {[%clk 0:02:15]} 13. axb5 {[%clk 0:01:34]}  axb5 {[%clk 0:02:15]} 14. Ne2 {[%clk 0:01:13]}  b4 {[%clk 0:02:02]} 15. Bxe5 {[%clk 0:01:12]}  dxe5 {[%clk 0:02:03]} 16. b3 {[%clk 0:01:12]}  bxa3 {[%clk 0:02:02]} 0-1


[Site "https://www.chess.com"]

[Event "Titled Tuesday Blitz March 07 Early 2023"]
[White "Hamitevici, Vladimir"]
[Black "Gholami Orimi, Mahdi"]
[WhiteFideId "13902393"]
[BlackFideId "12558486"]
[WhiteElo "2401"]
[BlackElo "2363"]
[Result "0-1"]
[Round "06"]
[TimeControl "180+2"]
[Date "2023.03.07"]
[WhiteClock "0:00:05"]
[BlackClock "0:01:17"]

1. Nf3 {[%clk 0:03:00]}  d5 {[%clk 0:02:56]} 2. g3 {[%clk 0:03:00]}  Nd7 {[%clk 0:02:55]} 3. d4 {[%clk 0:02:54]}  Nb6 {[%clk 0:02:55]} 4. Bg2 {[%clk 0:02:52]}  Bf5 {[%clk 0:02:55]} 5. a4 {[%clk 0:02:47]}  a5 {[%clk 0:02:55]} 6. O-O {[%clk 0:02:44]}  e6 {[%clk 0:02:56]} 7. Nc3 {[%clk 0:02:34]}  Nf6 {[%clk 0:02:54]} 8. Nh4 {[%clk 0:02:33]}  Bg4 {[%clk 0:02:52]} 9. h3 {[%clk 0:02:28]}  Bh5 {[%clk 0:02:52]} 10. g4 {[%clk 0:02:26]}  Bg6 {[%clk 0:02:51]} 11. Bg5 {[%clk 0:02:17]}  c6 {[%clk 0:02:46]} 12. e4 {[%clk 0:02:09]}  dxe4 {[%clk 0:02:46]} 13. Nxe4 {[%clk 0:02:08]}  Bxe4 {[%clk 0:02:41]} 14. Bxe4 {[%clk 0:02:05]}  h6 {[%clk 0:02:41]} 15. Bxf6 {[%clk 0:01:43]}  Qxf6 {[%clk 0:02:42]} 16. Ng2 {[%clk 0:01:30]}  h5 {[%clk 0:02:29]} 17. Qf3 {[%clk 0:01:16]}  hxg4 {[%clk 0:02:15]} 18. Qxf6 {[%clk 0:01:12]}  gxf6 {[%clk 0:02:16]} 19. hxg4 {[%clk 0:01:12]}  Nc4 {[%clk 0:02:17]} 20. Rfd1 {[%clk 0:01:00]}  Bh6 {[%clk 0:01:55]} 21. f4 {[%clk 0:00:36]}  O-O-O {[%clk 0:01:48]} 22. b3 {[%clk 0:00:36]}  Nd6 {[%clk 0:01:47]} 23. Bf3 {[%clk 0:00:36]}  Bg7 {[%clk 0:01:45]} 24. c3 {[%clk 0:00:27]}  f5 {[%clk 0:01:45]} 25. g5 {[%clk 0:00:26]}  Rh3 {[%clk 0:01:45]} 26. Kf2 {[%clk 0:00:27]}  Ne4+ {[%clk 0:01:45]} 27. Bxe4 {[%clk 0:00:27]}  fxe4 {[%clk 0:01:46]} 28. Rac1 {[%clk 0:00:21]}  Rdh8 {[%clk 0:01:39]} 29. Re1 {[%clk 0:00:20]}  Rf3+ {[%clk 0:01:37]} 30. Kg1 {[%clk 0:00:20]}  Rhh3 {[%clk 0:01:33]} 31. Rxe4 {[%clk 0:00:15]}  Rxc3 {[%clk 0:01:33]} 32. Rxc3 {[%clk 0:00:13]}  Rxc3 {[%clk 0:01:34]} 33. g6 {[%clk 0:00:14]}  fxg6 {[%clk 0:01:31]} 34. Rxe6 {[%clk 0:00:14]}  Bxd4+ {[%clk 0:01:31]} 35. Kh2 {[%clk 0:00:15]}  Rxb3 {[%clk 0:01:32]} 36. Rxg6 {[%clk 0:00:15]}  Ra3 {[%clk 0:01:29]} 37. f5 {[%clk 0:00:16]}  Be5+ {[%clk 0:01:30]} 38. Kg1 {[%clk 0:00:16]}  Rf3 {[%clk 0:01:16]} 39. Nh4 {[%clk 0:00:10]}  Rf4 {[%clk 0:01:16]} 40. Rh6 {[%clk 0:00:06]}  Bg7 {[%clk 0:01:15]} 41. Rh7 {[%clk 0:00:06]}  Bf6 {[%clk 0:01:15]} 42. Ng6 {[%clk 0:00:05]}  Rxf5 {[%clk 0:01:16]} 43. Kg2 {[%clk 0:00:05]}  Rg5+ {[%clk 0:01:16]} 44. Kf3 {[%clk 0:00:05]}  Rxg6 {[%clk 0:01:17]} 0-1


[Site "https://www.chess.com"]

[Event "Titled Tuesday Blitz March 07 Early 2023"]
[White "Manelyuk, Daniil"]
[Black "Ibarra Jerez, Jose Carlos"]
[WhiteFideId "44173920"]
[BlackFideId "2226332"]
[WhiteElo "2259"]
[BlackElo "2638"]
[Result "0-1"]
[Round "06"]
[TimeControl "180+2"]
[Date "2023.03.07"]
[WhiteClock "0:00:03"]
[BlackClock "0:00:39"]

1. e4 {[%clk 0:03:00]}  c5 {[%clk 0:02:59]} 2. Nf3 {[%clk 0:03:01]}  e6 {[%clk 0:02:58]} 3. c4 {[%clk 0:02:59]}  Nc6 {[%clk 0:02:57]} 4. Nc3 {[%clk 0:02:59]}  Nf6 {[%clk 0:02:55]} 5. Be2 {[%clk 0:02:58]}  e5 {[%clk 0:02:43]} 6. O-O {[%clk 0:02:56]}  g6 {[%clk 0:02:43]} 7. d3 {[%clk 0:02:55]}  Bg7 {[%clk 0:02:44]} 8. Bg5 {[%clk 0:02:50]}  h6 {[%clk 0:02:43]} 9. Bxf6 {[%clk 0:02:50]}  Bxf6 {[%clk 0:02:43]} 10. Nd5 {[%clk 0:02:50]}  Bg7 {[%clk 0:02:43]} 11. Nd2 {[%clk 0:02:51]}  O-O {[%clk 0:02:43]} 12. a3 {[%clk 0:02:50]}  a5 {[%clk 0:02:43]} 13. Rb1 {[%clk 0:02:50]}  d6 {[%clk 0:02:43]} 14. b4 {[%clk 0:02:49]}  b6 {[%clk 0:02:26]} 15. b5 {[%clk 0:02:24]}  Nd4 {[%clk 0:02:26]} 16. Bg4 {[%clk 0:02:24]}  f5 {[%clk 0:02:25]} 17. Bh3 {[%clk 0:02:23]}  Ra7 {[%clk 0:02:20]} 18. Nb3 {[%clk 0:02:11]}  Ne6 {[%clk 0:02:18]} 19. f4 {[%clk 0:01:37]}  exf4 {[%clk 0:02:12]} 20. Nxf4 {[%clk 0:01:37]}  Ng5 {[%clk 0:02:01]} 21. Nd2 {[%clk 0:01:03]}  Nxh3+ {[%clk 0:01:56]} 22. gxh3 {[%clk 0:00:52]}  Be5 {[%clk 0:01:44]} 23. Ng2 {[%clk 0:00:43]}  f4 {[%clk 0:01:35]} 24. h4 {[%clk 0:00:33]}  Rg7 {[%clk 0:01:31]} 25. Nf3 {[%clk 0:00:22]}  g5 {[%clk 0:01:31]} 26. hxg5 {[%clk 0:00:20]}  hxg5 {[%clk 0:01:31]} 27. d4 {[%clk 0:00:19]}  cxd4 {[%clk 0:01:25]} 28. Nxd4 {[%clk 0:00:20]}  g4 {[%clk 0:01:24]} 29. Nc6 {[%clk 0:00:20]}  Qf6 {[%clk 0:01:22]} 30. Nxe5 {[%clk 0:00:10]}  dxe5 {[%clk 0:01:23]} 31. c5 {[%clk 0:00:08]}  g3 {[%clk 0:01:17]} 32. hxg3 {[%clk 0:00:08]}  Rxg3 {[%clk 0:01:17]} 33. Rf3 {[%clk 0:00:07]}  Rg7 {[%clk 0:01:02]} 34. c6 {[%clk 0:00:05]}  Bg4 {[%clk 0:01:01]} 35. Qd5+ {[%clk 0:00:05]}  Kh7 {[%clk 0:01:00]} 36. Rf2 {[%clk 0:00:04]}  f3 {[%clk 0:00:55]} 37. Ne3 {[%clk 0:00:03]}  Be6+ {[%clk 0:00:55]} 38. Kh1 {[%clk 0:00:03]}  Bxd5 {[%clk 0:00:54]} 39. Rh2+ {[%clk 0:00:03]}  Kg8 {[%clk 0:00:53]} 40. Nxd5 {[%clk 0:00:04]}  Qg6 {[%clk 0:00:51]} 41. c7 {[%clk 0:00:04]}  f2 {[%clk 0:00:46]} 42. Rxf2 {[%clk 0:00:03]}  Qxe4+ {[%clk 0:00:39]} 0-1


[Site "https://www.chess.com"]

[Event "Titled Tuesday Blitz March 07 Early 2023"]
[White "Leiva, Gianmarco"]
[Black "Vokhidov, Shamsiddin"]
[WhiteFideId "3804399"]
[BlackFideId "14204223"]
[WhiteElo "2345"]
[BlackElo "2570"]
[Result "1/2-1/2"]
[Round "06"]
[TimeControl "180+2"]
[Date "2023.03.07"]
[WhiteClock "0:00:06"]
[BlackClock "0:00:04"]

1. e4 {[%clk 0:02:58]}  g6 {[%clk 0:02:58]} 2. d4 {[%clk 0:02:58]}  Nf6 {[%clk 0:02:59]} 3. c3 {[%clk 0:02:59]}  Nxe4 {[%clk 0:02:59]} 4. h4 {[%clk 0:02:57]}  h5 {[%clk 0:02:56]} 5. Bd3 {[%clk 0:02:56]}  d5 {[%clk 0:02:56]} 6. Nh3 {[%clk 0:02:54]}  Bg7 {[%clk 0:02:47]} 7. Nd2 {[%clk 0:02:49]}  Bf5 {[%clk 0:02:44]} 8. Nxe4 {[%clk 0:02:45]}  dxe4 {[%clk 0:02:44]} 9. Bc4 {[%clk 0:02:46]}  e6 {[%clk 0:02:34]} 10. Ng5 {[%clk 0:02:39]}  Nd7 {[%clk 0:02:34]} 11. Qe2 {[%clk 0:02:29]}  Nf6 {[%clk 0:02:21]} 12. Bf4 {[%clk 0:02:28]}  O-O {[%clk 0:02:12]} 13. Be5 {[%clk 0:02:27]}  Ng4 {[%clk 0:01:55]} 14. Bxg7 {[%clk 0:02:25]}  Kxg7 {[%clk 0:01:56]} 15. Nxe4 {[%clk 0:02:25]}  Bxe4 {[%clk 0:01:50]} 16. Qxe4 {[%clk 0:02:24]}  c6 {[%clk 0:01:50]} 17. f3 {[%clk 0:01:57]}  Nf6 {[%clk 0:01:50]} 18. Qe5 {[%clk 0:01:56]}  b5 {[%clk 0:01:47]} 19. Bb3 {[%clk 0:01:53]}  a5 {[%clk 0:01:43]} 20. a3 {[%clk 0:01:50]}  Qb8 {[%clk 0:01:42]} 21. Qxb8 {[%clk 0:01:23]}  Raxb8 {[%clk 0:01:41]} 22. Kf2 {[%clk 0:01:19]}  Rfd8 {[%clk 0:01:37]} 23. Ke3 {[%clk 0:01:18]}  Nd5+ {[%clk 0:01:34]} 24. Bxd5 {[%clk 0:01:18]}  Rxd5 {[%clk 0:01:29]} 25. Rhd1 {[%clk 0:01:07]}  a4 {[%clk 0:01:28]} 26. Rd2 {[%clk 0:00:56]}  Rbd8 {[%clk 0:01:27]} 27. Re2 {[%clk 0:00:54]}  c5 {[%clk 0:01:16]} 28. dxc5 {[%clk 0:00:53]}  Rxc5 {[%clk 0:01:17]} 29. Kf2 {[%clk 0:00:49]}  Kf6 {[%clk 0:01:09]} 30. Rae1 {[%clk 0:00:46]}  Rc4 {[%clk 0:01:07]} 31. Kg3 {[%clk 0:00:35]}  Rd5 {[%clk 0:01:07]} 32. Re4 {[%clk 0:00:33]}  Rd2 {[%clk 0:01:05]} 33. Rxc4 {[%clk 0:00:33]}  bxc4 {[%clk 0:01:06]} 34. Re4 {[%clk 0:00:34]}  Rxb2 {[%clk 0:01:00]} 35. Rxc4 {[%clk 0:00:35]}  Rb3 {[%clk 0:01:00]} 36. Rxa4 {[%clk 0:00:35]}  Rxc3 {[%clk 0:01:01]} 37. Ra7 {[%clk 0:00:35]}  e5 {[%clk 0:00:59]} 38. Kh2 {[%clk 0:00:35]}  Ke6 {[%clk 0:00:51]} 39. a4 {[%clk 0:00:35]}  Rc4 {[%clk 0:00:52]} 40. Kg3 {[%clk 0:00:34]}  f6 {[%clk 0:00:48]} 41. a5 {[%clk 0:00:32]}  Ra4 {[%clk 0:00:48]} 42. Ra6+ {[%clk 0:00:30]}  Kf5 {[%clk 0:00:48]} 43. Kh3 {[%clk 0:00:30]}  Ra3 {[%clk 0:00:45]} 44. Kh2 {[%clk 0:00:29]}  Ra1 {[%clk 0:00:43]} 45. Kg3 {[%clk 0:00:27]}  g5 {[%clk 0:00:38]} 46. hxg5 {[%clk 0:00:24]}  Kxg5 {[%clk 0:00:39]} 47. Ra8 {[%clk 0:00:20]}  h4+ {[%clk 0:00:39]} 48. Kh2 {[%clk 0:00:19]}  f5 {[%clk 0:00:35]} 49. a6 {[%clk 0:00:18]}  Kf4 {[%clk 0:00:27]} 50. Rh8 {[%clk 0:00:16]}  Rxa6 {[%clk 0:00:23]} 51. Rxh4+ {[%clk 0:00:16]}  Ke3 {[%clk 0:00:23]} 52. Rh5 {[%clk 0:00:13]}  Rf6 {[%clk 0:00:20]} 53. Rh8 {[%clk 0:00:07]}  e4 {[%clk 0:00:20]} 54. fxe4 {[%clk 0:00:08]}  fxe4 {[%clk 0:00:20]} 55. Re8 {[%clk 0:00:07]}  Kf2 {[%clk 0:00:19]} 56. Kh3 {[%clk 0:00:06]}  e3 {[%clk 0:00:19]} 57. g3 {[%clk 0:00:03]}  e2 {[%clk 0:00:18]} 58. Kh4 {[%clk 0:00:02]}  e1=Q {[%clk 0:00:18]} 59. Rxe1 {[%clk 0:00:03]}  Kxe1 {[%clk 0:00:18]} 60. g4 {[%clk 0:00:04]}  Kf2 {[%clk 0:00:19]} 61. g5 {[%clk 0:00:04]}  Rc6 {[%clk 0:00:11]} 62. Kh5 {[%clk 0:00:05]}  Kg3 {[%clk 0:00:11]} 63. g6 {[%clk 0:00:05]}  Kf4 {[%clk 0:00:09]} 64. g7 {[%clk 0:00:05]}  Rc8 {[%clk 0:00:05]} 65. Kg6 {[%clk 0:00:06]}  Ke5 {[%clk 0:00:04]} 66. Kh7 {[%clk 0:00:05]}  Rc7 {[%clk 0:00:05]} 67. Kh8 {[%clk 0:00:05]}  Rxg7 {[%clk 0:00:04]} 68. Kxg7 {[%clk 0:00:06]} 1/2-1/2


[Site "https://www.chess.com"]